bitfinex/quotes_BTCUSD_20250123
["timestamp","ask_amount","ask_price","bid_price","bid_amount"]
[1737639412131,0.571154,101910.0,101890.0,0.46087338]
[1737639412335,0.571154,101910.0,101890.0,0.294429]
[1737639412489,0.374891,101910.0,101890.0,0.29363129]
[1737639412696,0.374891,101910.0,101900.0,0.098135]
[1737639414596,0.0805,101910.0,101900.0,0.098135]
[1737639414984,0.178625,101910.0,101900.0,0.098135]
[1737639415218,0.098135,101900.0,101890.0,0.07107762]
[1737639415421,0.098145,101890.0,101880.0,0.29474183]
[1737639415550,0.588854,101900.0,101880.0,0.24190974]
[1737639415752,0.392567,101900.0,101880.0,0.63452174]
[1737639415983,0.098145,101890.0,101880.0,0.43821274]
[1737639416343,0.490709,101900.0,101880.0,0.43821274]
[1737639416548,0.490709,101900.0,101880.0,0.63451074]
[1737639416761,0.490709,101900.0,101880.0,0.83080874]
[1737639416962,0.294423,101900.0,101880.0,0.53636074]
[1737639417206,0.098142,101900.0,101890.0,0.098145]
[1737639417414,0.393756,101920.0,101890.0,0.56539613]
[1737639417616,0.29450674,101920.0,101910.0,0.098125]
[1737639418026,0.34450674,101920.0,101910.0,0.098125]
[1737639418230,0.54074674,101920.0,101900.0,0.59596746]
[1737639418432,0.54074674,101920.0,101900.0,0.79222846]
[1737639418690,0.00015074,101920.0,101910.0,0.27255355]
[1737639418896,0.00015074,101920.0,101910.0,0.54290084]
[1737639421706,0.00015074,101920.0,101910.0,0.63283455]
[1737639422905,0.00015074,101920.0,101910.0,0.76493455]
[1737639424065,0.00015074,101920.0,101910.0,0.78493455]
[1737639424306,0.00015074,101920.0,101910.0,0.74465317]
[1737639425967,0.00015074,101920.0,101910.0,0.48827508]
[1737639426171,0.00015074,101920.0,101910.0,0.24957508]
[1737639426774,0.00015074,101920.0,101910.0,0.39957508]
[1737639427317,0.00015074,101920.0,101910.0,0.42257508]
[1737639429019,0.00015074,101920.0,101910.0,0.41459091]
[1737639429162,0.00015074,101920.0,101910.0,0.42257508]
[1737639429359,0.00015074,101920.0,101910.0,0.41459091]
[1737639429566,0.00015074,101920.0,101910.0,0.42257508]
[1737639430208,0.00015074,101920.0,101910.0,0.43825508]
[1737639432021,0.00015074,101920.0,101910.0,0.41525508]
[1737639432255,0.00015074,101920.0,101910.0,0.39957508]
[1737639432460,0.00015074,101920.0,101910.0,0.39159091]
[1737639432667,0.00029314,101920.0,101910.0,0.24159091]
[1737639433089,0.29464114,101920.0,101900.0,0.74305414]
[1737639433292,0.29464114,101920.0,101910.0,0.098125]
[1737639433711,0.098125,101910.0,101900.0,0.44789143]
[1737639434123,0.68714014,101920.0,101900.0,0.44789143]
[1737639434530,0.68713614,101920.0,101900.0,0.64416143]
[1737639434701,0.68713614,101920.0,101900.0,0.6521456]
[1737639434702,0.49089314,101920.0,101900.0,0.6521456]
[1737639435145,0.098125,101910.0,101900.0,0.1614926]
[1737639435353,0.098135,101900.0,101890.0,0.00029904]
[1737639435762,0.470111,101910.0,101890.0,0.09844404]
[1737639435963,0.098135,101900.0,101890.0,0.29472504]
[1737639436414,0.098135,101900.0,101890.0,0.00029904]
[1737639439772,0.16015083,101900.0,101890.0,0.00029904]
[1737639440015,0.25749812,101900.0,101890.0,0.00029904]
[1737639440221,0.19548229,101900.0,101890.0,0.00029904]
[1737639440670,0.24548229,101900.0,101890.0,0.00029904]
[1737639440874,0.19548229,101900.0,101890.0,0.00029904]
[1737639441078,0.29282958,101900.0,101890.0,0.00029904]
[1737639441812,0.45936921,101900.0,101890.0,0.00029904]
[1737639442931,0.148135,101900.0,101890.0,0.00029904]
[1737639443141,0.24382614,101920.0,101910.0,0.098125]
[1737639443142,0.00029314,101920.0,101910.0,0.098125]
[1737639443519,0.08764462,101920.0,101910.0,0.098125]
[1737639443763,0.18576062,101920.0,101910.0,0.098125]
[1737639443937,0.08764462,101920.0,101910.0,0.098125]
[1737639444138,0.08764462,101920.0,101910.0,0.16761262]
[1737639444947,0.08764462,101920.0,101910.0,0.46248371]
[1737639445234,0.08764462,101920.0,101910.0,0.29594408]
[1737639447097,0.08764462,101920.0,101910.0,0.27294408]
[1737639447244,0.09840914,101920.0,101910.0,0.16761262]
[1737639448059,0.09840914,101920.0,101900.0,0.49863417]
[1737639448060,0.29464814,101920.0,101900.0,0.49863417]
[1737639448250,0.09840914,101920.0,101910.0,0.098125]
[1737639448675,0.098125,101910.0,101900.0,0.39971246]
[1737639448882,0.29465414,101920.0,101910.0,0.098125]
[1737639450103,0.09841214,101920.0,101910.0,0.098125]
[1737639450520,0.00029314,101920.0,101910.0,0.098125]
[1737639450745,0.00029314,101920.0,101910.0,0.17734765]
[1737639450948,0.00029314,101920.0,101910.0,0.47221874]
[1737639451160,0.00029314,101920.0,101910.0,0.30567911]
[1737639451591,0.00029314,101920.0,101910.0,0.47221874]
[1737639452131,0.00029314,101920.0,101910.0,0.17734765]
[1737639452306,0.00029314,101920.0,101910.0,0.098125]
[1737639453582,0.00029314,101920.0,101900.0,0.196253]
[1737639453782,0.098135,101900.0,101890.0,0.30983604]
[1737639453984,0.098135,101900.0,101890.0,0.09844104]
[1737639454184,0.098135,101900.0,101890.0,0.00029904]
[1737639454386,0.22302978,101900.0,101890.0,0.00029904]
[1737639454613,0.18504561,101900.0,101890.0,0.00029904]
[1737639455163,0.098135,101900.0,101890.0,0.00029904]
[1737639455366,0.148135,101900.0,101890.0,0.00029904]
[1737639456029,0.1482775,101900.0,101890.0,0.00029904]
[1737639456669,0.20764062,101900.0,101890.0,0.00029904]
[1737639457514,0.19562479,101900.0,101890.0,0.00029904]
[1737639457718,0.29297208,101900.0,101890.0,0.00029904]
[1737639457922,0.45951171,101900.0,101890.0,0.00029904]
[1737639458800,0.29297208,101900.0,101890.0,0.00029904]
[1737639459393,0.69101171,101900.0,101890.0,0.00029904]
[1737639459859,0.52447208,101900.0,101890.0,0.00029904]
[1737639461368,0.42712479,101900.0,101890.0,0.00029904]
[1737639462230,0.24179333,101900.0,101890.0,0.00029904]
[1737639462648,0.0982775,101900.0,101890.0,0.09844404]
[1737639462863,0.1482775,101900.0,101890.0,0.00029904]
[1737639463274,0.16029333,101900.0,101890.0,0.00029904]
[1737639465183,0.11029333,101900.0,101890.0,0.00029904]
[1737639465391,0.1482775,101900.0,101890.0,0.09844404]
[1737639465803,0.0001425,101900.0,101890.0,0.09844404]
[1737639467045,0.0982775,101900.0,101890.0,0.09844404]
[1737639467258,0.1482775,101900.0,101890.0,0.00029904]
[1737639468058,0.1482775,101900.0,101890.0,0.09844404]
[1737639470091,0.0982775,101900.0,101890.0,0.16720753]
[1737639473418,0.0982775,101900.0,101890.0,0.00029904]
[1737639473566,0.0982775,101900.0,101890.0,0.09844404]
[1737639474003,0.0001425,101900.0,101890.0,0.09844404]
[1737639474203,0.0982775,101900.0,101890.0,0.09844404]
[1737639475339,0.0001425,101900.0,101890.0,0.09844404]
[1737639475482,0.0982775,101900.0,101890.0,0.09844404]
[1737639475697,0.0001425,101900.0,101890.0,0.09844404]
[1737639476125,0.0001425,101900.0,101890.0,0.16720753]
[1737639476331,0.0982775,101900.0,101890.0,0.16720753]
[1737639476554,0.0001425,101900.0,101890.0,0.16720753]
[1737639478939,0.0001425,101900.0,101890.0,0.27253899]
[1737639479148,0.0001425,101900.0,101890.0,0.46207862]
[1737639479777,0.0001425,101900.0,101890.0,0.61207862]
[1737639484409,0.0001425,101900.0,101890.0,0.00029904]
[1737639484410,0.0982775,101900.0,101890.0,0.00029904]
[1737639484623,0.0001425,101900.0,101890.0,0.09844404]
[1737639484825,0.0982775,101900.0,101890.0,0.09844404]
[1737639485032,0.0001425,101900.0,101890.0,0.2037755]
[1737639485646,0.0001425,101900.0,101890.0,0.54331513]
[1737639485860,0.0001425,101900.0,101890.0,0.76876242]
[1737639487048,0.0001425,101900.0,101890.0,0.79912262]
[1737639487248,5e-07,101900.0,101890.0,0.86912262]
[1737639489187,0.00029314,101920.0,101910.0,0.38400917]
[1737639489365,0.00029314,101920.0,101910.0,0.67089609]
[1737639489564,1.4e-07,101920.0,101910.0,1.00478301]
[1737639489936,1.4e-07,101920.0,101910.0,0.76025921]
[1737639490154,1.4e-07,101920.0,101910.0,0.76824338]
[1737639490851,1.4e-07,101920.0,101910.0,0.78264338]
[1737639491086,1.4e-07,101920.0,101910.0,0.59310375]
[1737639491285,1.4e-07,101920.0,101910.0,0.78264338]
[1737639491505,1.4e-07,101920.0,101910.0,0.77465921]
[1737639491708,1.4e-07,101920.0,101910.0,0.78264338]
[1737639492561,1.4e-07,101920.0,101910.0,0.76824338]
[1737639492769,1.4e-07,101920.0,101910.0,0.78260338]
[1737639492975,1.4e-07,101920.0,101910.0,0.79205683]
[1737639494437,1.4e-07,101920.0,101910.0,0.75469683]
[1737639494641,1.4e-07,101920.0,101910.0,0.30227303]
[1737639494845,1.4e-07,101920.0,101910.0,0.29281958]
[1737639495050,1.4e-07,101920.0,101900.0,0.20423817]
[1737639495265,1.4e-07,101920.0,101900.0,0.69410846]
[1737639495467,1.4e-07,101920.0,101910.0,0.098125]
[1737639495624,0.09811614,101920.0,101910.0,0.098125]
[1737639495824,0.49059014,101920.0,101900.0,0.59720419]
[1737639496029,0.29434914,101920.0,101910.0,0.098125]
[1737639496367,0.49059014,101920.0,101900.0,0.78424829]
[1737639496571,0.29434914,101920.0,101910.0,0.098125]
[1737639497216,0.19626,101910.0,101890.0,0.01978094]
[1737639497397,0.098135,101900.0,101890.0,0.29472804]
[1737639497710,0.294394,101910.0,101900.0,0.098135]
[1737639498477,0.294394,101910.0,101890.0,0.75385891]
[1737639498686,0.294394,101910.0,101900.0,0.098135]
[1737639499433,0.098125,101910.0,101900.0,0.294398]
[1737639499773,0.098125,101910.0,101900.0,0.098135]
[1737639500007,0.490635,101910.0,101890.0,0.55757591]
[1737639500218,0.294376,101910.0,101890.0,0.75385591]
[1737639500418,0.294376,101910.0,101890.0,0.65571891]
[1737639500620,0.49064,101910.0,101890.0,0.55757591]
[1737639500817,0.294376,101910.0,101900.0,0.098135]
[1737639501119,0.37086714,101920.0,101910.0,0.098125]
[1737639501578,0.07650014,101920.0,101910.0,0.098125]
[1737639501756,0.17461614,101920.0,101910.0,0.098125]
[1737639502416,0.07650014,101920.0,101910.0,0.098125]
[1737639502640,1.4e-07,101920.0,101910.0,0.098125]
[1737639502842,1.4e-07,101920.0,101910.0,0.15578079]
[1737639503046,1.4e-07,101920.0,101910.0,0.42765188]
[1737639503369,1.4e-07,101920.0,101910.0,0.57765188]
[1737639503568,1.4e-07,101920.0,101910.0,0.40312808]
[1737639503830,1.4e-07,101920.0,101910.0,0.30578079]
[1737639503968,0.09811614,101920.0,101910.0,0.15578079]
[1737639504180,0.09811614,101920.0,101910.0,0.05765579]
[1737639504405,0.09811614,101920.0,101910.0,0.15578079]
[1737639504843,0.49058914,101920.0,101900.0,0.56602939]
[1737639505073,0.29434914,101920.0,101910.0,0.098125]
[1737639505289,0.098125,101910.0,101900.0,0.36977439]
[1737639505745,0.57130514,101920.0,101900.0,0.27165539]
[1737639505958,0.098125,101910.0,101900.0,0.17351939]
[1737639506161,0.098125,101910.0,101900.0,0.098134]
[1737639506793,0.490639,101910.0,101890.0,0.49098904]
[1737639506992,0.490639,101910.0,101890.0,0.68726904]
[1737639507130,0.294378,101910.0,101900.0,0.098135]
[1737639511312,0.93654741,101920.0,101900.0,0.490667]
[1737639511519,0.098125,101910.0,101900.0,0.3631222]
[1737639512606,0.62131114,101920.0,101900.0,0.5593842]
[1737639512830,0.63332297,101920.0,101900.0,0.3631132]
[1737639513032,0.82956897,101920.0,101900.0,0.490659]
[1737639513234,0.63332297,101920.0,101900.0,0.686929]
[1737639513412,0.62130714,101920.0,101900.0,0.490659]
[1737639514057,0.63332297,101920.0,101900.0,0.490646]
[1737639514469,0.63332297,101920.0,101900.0,0.29468304]
[1737639514470,0.098125,101910.0,101900.0,0.29468304]
[1737639514717,0.38707697,101920.0,101900.0,0.46236667]
[1737639514914,0.63332097,101920.0,101900.0,0.56049467]
[1737639515216,0.82956497,101920.0,101900.0,0.49094204]
[1737639515418,0.63332097,101920.0,101900.0,0.49094204]
[1737639515626,0.58332097,101920.0,101900.0,0.58907504]
[1737639515831,0.38707697,101920.0,101910.0,0.098125]
[1737639516035,1.4e-07,101920.0,101910.0,0.166845]
[1737639516486,1.4e-07,101920.0,101910.0,0.27778398]
[1737639516970,1.4e-07,101920.0,101910.0,0.166845]
[1737639519418,1.4e-07,101920.0,101910.0,0.27778398]
[1737639519621,1.4e-07,101920.0,101910.0,0.53311544]
[1737639519825,1.4e-07,101920.0,101910.0,0.60491544]
[1737639521813,1.4e-07,101920.0,101910.0,0.68341544]
[1737639522014,1.4e-07,101920.0,101910.0,0.79435442]
[1737639525490,4.4e-07,101930.0,101920.0,0.67717813]
[1737639525695,4.4e-07,101930.0,101920.0,1.02573224]
[1737639527778,4.4e-07,101930.0,101920.0,0.89479326]
[1737639527955,4.4e-07,101930.0,101920.0,0.71093373]
[1737639528577,4.4e-07,101930.0,101920.0,0.89187271]
[1737639530047,0.0001425,101970.0,101960.0,0.25606117]
[1737639530276,0.00064544,101970.0,101960.0,0.4979072]
[1737639531812,0.00064544,101970.0,101960.0,0.68154618]
[1737639532013,0.00064544,101970.0,101960.0,0.71682437]
[1737639532842,2.516e-05,101980.0,101970.0,0.023]
[1737639533014,0.00017591,101980.0,101970.0,0.44123129]
[1737639533216,0.00017591,101980.0,101970.0,0.50897082]
[1737639533636,9.1e-07,101980.0,101970.0,0.65897082]
[1737639533935,5e-08,101990.0,101980.0,0.32822105]
[1737639534166,5e-08,101990.0,101980.0,0.53650732]
[1737639534547,5e-08,101990.0,101980.0,0.46978427]
[1737639534763,5e-08,101990.0,101980.0,0.56713156]
[1737639534956,5e-08,101990.0,101980.0,0.59013156]
[1737639535366,5e-08,101990.0,101980.0,0.57669156]
[1737639535576,5e-08,101990.0,101980.0,0.59021156]
[1737639535777,5e-08,101990.0,101980.0,0.70115054]
[1737639535979,5e-08,101990.0,101980.0,0.62527461]
[1737639537548,5e-08,101990.0,101980.0,0.73621359]
[1737639537880,5e-08,101990.0,101980.0,0.62527461]
[1737639539182,5e-08,101990.0,101980.0,0.37721661]
[1737639539429,5e-08,101990.0,101980.0,0.34227618]
[1737639539603,5e-08,101990.0,101980.0,0.41395779]
[1737639539805,5e-08,101990.0,101980.0,0.44520125]
[1737639539961,5e-08,101990.0,101980.0,0.41395779]
[1737639540153,5e-08,101990.0,101980.0,0.44520125]
[1737639540573,5e-08,101990.0,101980.0,0.67214023]
[1737639540789,5e-08,101990.0,101980.0,0.70544427]
[1737639540990,5e-08,101990.0,101980.0,0.68544427]
[1737639541223,5e-08,101990.0,101980.0,0.72450529]
[1737639541844,5e-08,101990.0,101980.0,0.69326183]
[1737639542325,5e-08,101990.0,101980.0,0.5092451]
[1737639542521,5e-08,101990.0,101980.0,0.39870164]
[1737639542671,5e-08,101990.0,101980.0,0.50270164]
[1737639542870,5e-08,101990.0,101980.0,0.48874164]
[1737639543288,5e-08,101990.0,101980.0,0.50274164]
[1737639543489,5e-08,101990.0,101980.0,0.55200159]
[1737639544240,5e-08,101990.0,101980.0,0.37307698]
[1737639545121,5e-08,101990.0,101980.0,0.39607698]
[1737639546533,5e-08,101990.0,101980.0,0.49342427]
[1737639547247,5e-08,101990.0,101980.0,0.57322427]
[1737639547686,5e-08,101990.0,101980.0,0.67082427]
[1737639547903,10.49893989,102000.0,101990.0,0.098048]
[1737639548135,10.49893989,102000.0,101990.0,0.32933427]
[1737639548703,10.49893989,102000.0,101990.0,0.38198698]
[1737639548924,10.49893989,102000.0,101990.0,0.47933427]
[1737639550251,10.49893989,102000.0,101990.0,0.38198698]
[1737639552163,10.49893989,102000.0,101990.0,0.38138698]
[1737639552395,10.49883989,102000.0,101990.0,0.23138698]
[1737639552618,10.59687889,102000.0,101990.0,0.23138698]
[1737639552848,10.97232389,102000.0,101980.0,0.41955502]
[1737639553075,0.098048,101990.0,101980.0,0.44255502]
[1737639553330,10.87427489,102000.0,101990.0,0.023]
[1737639553561,10.87427489,102000.0,101990.0,0.121048]
[1737639553806,10.87427489,102000.0,101990.0,0.023]
[1737639554510,10.87427489,102000.0,101990.0,0.121048]
[1737639554761,10.58013989,102000.0,101990.0,0.23198698]
[1737639554994,10.67817889,102000.0,101990.0,0.23198698]
[1737639555453,10.49883989,102000.0,101990.0,0.31404618]
[1737639555685,10.69492589,102000.0,101980.0,0.40539002]
[1737639555926,0.098048,101990.0,101980.0,0.23229002]
[1737639556403,10.87007189,102000.0,101980.0,0.42839602]
[1737639556629,11.06615989,102000.0,101980.0,0.62450102]
[1737639556829,11.06615789,102000.0,101980.0,0.62449802]
[1737639557047,11.06615789,102000.0,101980.0,0.62449902]
[1737639557251,11.06615789,102000.0,101980.0,0.82060802]
[1737639557536,11.06615789,102000.0,101980.0,0.62449902]
[1737639557772,11.26224789,102000.0,101980.0,0.62450002]
[1737639558006,0.118048,101990.0,101980.0,0.00029904]
[1737639558251,0.118048,101990.0,101980.0,0.09835704]
[1737639558955,0.118048,101990.0,101980.0,0.09835704]
[1737639559166,0.118048,101990.0,101980.0,0.00029904]
[1737639559370,0.118048,101990.0,101980.0,0.17812334]
[1737639559865,0.118048,101990.0,101980.0,0.00029904]
[1737639560565,0.21539529,101990.0,101980.0,0.00029904]
[1737639560800,0.29299529,101990.0,101980.0,0.00029904]
[1737639561209,0.175648,101990.0,101980.0,0.09835704]
[1737639561413,0.175648,101990.0,101980.0,0.02329904]
[1737639561828,0.27299529,101990.0,101980.0,0.00029904]
[1737639561995,0.29299529,101990.0,101980.0,0.00029904]
[1737639563180,0.43393427,101990.0,101980.0,0.00029904]
[1737639563372,0.53393427,101990.0,101980.0,0.00029904]
[1737639564447,0.47299529,101990.0,101980.0,0.00029904]
[1737639564653,0.098058,101980.0,101970.0,0.09799887]
[1737639564864,0.098058,101980.0,101970.0,0.04065864]
[1737639565160,0.294182,101980.0,101970.0,0.00015075]
[1737639565562,0.294182,101980.0,101970.0,0.09821875]
[1737639565823,0.294182,101980.0,101970.0,0.00015075]
[1737639566237,0.294182,101980.0,101970.0,0.09821875]
[1737639567473,0.098058,101980.0,101970.0,0.51347975]
[1737639567679,0.098058,101980.0,101970.0,0.10520672]
[1737639567879,0.098058,101980.0,101970.0,0.12121875]
[1737639568344,0.68593,101990.0,101980.0,0.098058]
[1737639568345,0.391761,101990.0,101980.0,0.098058]
[1737639568722,0.587866,101990.0,101970.0,0.51345775]
[1737639568878,0.21540529,101980.0,101970.0,0.00015075]
[1737639569084,0.37634427,101980.0,101970.0,0.00015075]
[1737639569289,0.47369156,101980.0,101970.0,0.00015075]
[1737639569499,0.36275258,101980.0,101970.0,0.00015075]
[1737639570348,0.73099156,101980.0,101970.0,0.00015075]
[1737639570544,0.68099156,101980.0,101970.0,0.00015075]
[1737639571706,0.69048435,101980.0,101970.0,0.00015075]
[1737639572658,0.098087,101950.0,101940.0,0.317277]
[1737639572860,0.706592,101960.0,101940.0,0.399338]
[1737639573070,0.098087,101950.0,101940.0,0.399338]
[1737639573273,0.70585329,101960.0,101950.0,0.098087]
[1737639573274,0.21543329,101960.0,101950.0,0.098087]
[1737639573492,0.58846461,101980.0,101960.0,0.098077]
[1737639573722,0.6658109,101980.0,101960.0,0.33013795]
[1737639573956,0.49046561,101980.0,101960.0,0.53914593]
[1737639574170,0.70659561,101980.0,101960.0,0.33013095]
[1737639574381,0.31433961,101980.0,101960.0,0.42820695]
[1737639574578,0.31433961,101980.0,101970.0,0.098068]
[1737639575337,0.51046561,101980.0,101960.0,0.490355]
[1737639575532,0.70659361,101980.0,101960.0,0.578171]
[1737639575702,0.51046561,101980.0,101960.0,0.578171]
[1737639576148,0.51046561,101980.0,101960.0,0.68910998]
[1737639576350,0.31433961,101980.0,101970.0,0.098068]
[1737639577026,0.31433961,101980.0,101960.0,0.69936298]
[1737639577027,0.51046561,101980.0,101960.0,0.490352]
[1737639577425,0.31433961,101980.0,101960.0,0.392282]
[1737639577668,0.51046661,101980.0,101960.0,0.490353]
[1737639578596,0.51046661,101980.0,101960.0,0.686499]
[1737639578943,0.51046661,101980.0,101960.0,0.490353]
[1737639579525,0.31433961,101980.0,101970.0,0.098068]
[1737639579727,0.51046461,101980.0,101960.0,0.490352]
[1737639580156,0.11821561,101980.0,101970.0,0.098068]
[1737639580364,0.02015061,101980.0,101970.0,0.098068]
[1737639580581,0.11820861,101980.0,101970.0,0.098068]
[1737639581640,0.09820861,101980.0,101970.0,0.098068]
[1737639581860,0.11820861,101980.0,101970.0,0.098068]
[1737639582079,0.09820861,101980.0,101970.0,0.098068]
[1737639582327,0.00015061,101980.0,101970.0,0.46175048]
[1737639582537,0.00015061,101980.0,101970.0,0.79513675]
[1737639583928,0.00015061,101980.0,101970.0,0.84513675]
[1737639584761,0.00015061,101980.0,101970.0,0.79543579]
[1737639585583,0.00029301,101980.0,101970.0,0.79543579]
[1737639586609,1e-08,101980.0,101970.0,0.86543579]
[1737639586803,1e-08,101980.0,101970.0,0.8957036]
[1737639587023,1e-08,101980.0,101970.0,0.90534762]
[1737639588572,10.49883989,102000.0,101990.0,0.36428698]
[1737639588782,10.49883989,102000.0,101990.0,0.51391072]
[1737639589233,10.49893837,102000.0,101990.0,0.51391072]
[1737639590050,10.49893837,102000.0,101990.0,0.52103469]
[1737639590466,10.49893837,102000.0,101990.0,0.63197367]
[1737639590755,10.49893837,102000.0,101990.0,0.78197367]
[1737639591299,10.49893837,102000.0,101990.0,0.7748497]
[1737639593304,10.49893837,102000.0,101990.0,0.8248497]
[1737639593755,10.49893837,102000.0,101990.0,0.84479941]
[1737639594820,10.49893837,102000.0,101990.0,0.79479941]
[1737639595053,10.49893837,102000.0,101990.0,0.84479941]
[1737639595437,10.49893837,102000.0,101990.0,0.85464784]
[1737639596047,10.34207437,102000.0,101990.0,0.85464784]
[1737639596718,10.34207437,102000.0,101990.0,0.80460784]
[1737639597069,10.34207437,102000.0,101990.0,0.85460784]
[1737639598013,10.34207437,102000.0,101990.0,0.80460784]
[1737639598355,10.34207437,102000.0,101990.0,0.85460784]
[1737639598529,10.34207437,102000.0,101990.0,0.80460784]
[1737639599346,10.34207437,102000.0,101990.0,0.79060784]
[1737639599576,10.34207437,102000.0,101990.0,0.80452784]
[1737639600414,10.34207437,102000.0,101990.0,0.69358886]
[1737639600635,10.34207437,102000.0,101990.0,0.38824886]
[1737639601030,10.34207437,102000.0,101990.0,0.53824886]
[1737639601262,10.34207437,102000.0,101990.0,0.56124886]
[1737639601472,10.34207437,102000.0,101990.0,0.67218784]
[1737639602777,10.34207437,102000.0,101990.0,0.79658784]
[1737639604194,10.34207437,102000.0,101990.0,0.84658784]
[1737639604461,10.26364237,102000.0,101990.0,0.84658784]
[1737639604613,10.24403437,102000.0,101990.0,0.84658784]
[1737639604780,10.24403437,102000.0,101990.0,0.86658784]
[1737639604981,10.22442637,102000.0,101990.0,0.86658784]
[1737639605185,10.14599437,102000.0,101990.0,0.86658784]
[1737639607344,10.14599437,102000.0,101990.0,0.81658784]
[1737639607562,10.14599437,102000.0,101990.0,0.86658784]
[1737639608005,10.14599437,102000.0,101990.0,0.79658784]
[1737639608205,10.14599437,102000.0,101990.0,0.78300688]
[1737639608422,10.14599437,102000.0,101990.0,0.79668688]
[1737639608635,10.14599437,102000.0,101990.0,0.62368688]
[1737639609024,10.14599437,102000.0,101990.0,0.77368688]
[1737639610015,10.14599437,102000.0,101990.0,0.79668688]
[1737639611837,10.14599437,102000.0,101990.0,0.78300688]
[1737639612040,10.14599437,102000.0,101990.0,0.79660688]
[1737639612655,10.14599437,102000.0,101990.0,0.5612679]
[1737639614033,10.14599437,102000.0,101990.0,0.67220688]
[1737639617253,10.14599437,102000.0,101990.0,0.75420688]
[1737639618586,10.14599437,102000.0,101990.0,0.78451302]
[1737639623239,10.14599437,102000.0,101990.0,0.78415302]
[1737639624274,10.01614807,102000.0,101990.0,0.87184688]
[1737639624479,9.8542204,102000.0,101990.0,0.90216652]
[1737639625093,9.8542204,102000.0,101990.0,0.83216652]
[1737639626317,9.8542204,102000.0,101990.0,0.88216652]
[1737639626531,9.7757884,102000.0,101990.0,0.90216652]
[1737639626767,9.7561804,102000.0,101990.0,0.90216652]
[1737639627185,9.7365724,102000.0,101990.0,0.90216652]
[1737639627400,9.6581404,102000.0,101990.0,0.90216652]
[1737639627610,9.62426561,102000.0,101990.0,0.90216652]
[1737639627822,9.45538137,102000.0,101990.0,0.86393007]
[1737639627977,9.43577337,102000.0,101990.0,0.86393007]
[1737639628191,9.35734137,102000.0,101990.0,0.86393007]
[1737639628396,8.98522507,102000.0,101990.0,0.86393007]
[1737639628601,8.12109882,102000.0,101990.0,0.86393007]
[1737639628805,7.92787027,102000.0,101990.0,0.89540666]
[1737639629004,7.4277173,102000.0,101990.0,0.89540666]
[1737639629215,7.34608521,102000.0,101990.0,0.87502387]
[1737639629478,7.26020012,102000.0,101990.0,0.87502387]
[1737639629603,7.25122833,102000.0,101990.0,0.87502387]
[1737639630010,7.21295252,102000.0,101990.0,0.87502387]
[1737639630211,7.077981,102000.0,101990.0,0.9619422]
[1737639630418,3.78946369,102000.0,101990.0,1.5116422]
[1737639630640,3.48035239,102000.0,101990.0,1.50179377]
[1737639630850,3.28557143,102000.0,101990.0,1.41979377]
[1737639631050,3.24635543,102000.0,101990.0,1.42692587]
[1737639631249,2.8778066,102000.0,101990.0,1.92692587]
[1737639631449,2.84360603,102000.0,101990.0,1.92692587]
[1737639631656,2.62429561,102000.0,101990.0,1.92692587]
[1737639631876,2.6021979,102000.0,101990.0,1.92692587]
[1737639632101,2.13690472,102000.0,101990.0,1.91040246]
[1737639632274,1.76068501,102000.0,101990.0,1.95040246]
[1737639634444,0.07837867,102080.0,102070.0,0.47009727]
[1737639634616,0.4413754,102100.0,102090.0,0.093]
[1737639634817,0.44147392,102100.0,102090.0,0.5418441]
[1737639635022,0.44147392,102100.0,102090.0,0.57087806]
[1737639635228,0.44147392,102100.0,102090.0,0.77752206]
[1737639635440,0.44147392,102100.0,102090.0,0.66338659]
[1737639636671,0.44147392,102100.0,102090.0,0.62958659]
[1737639636894,0.44147392,102100.0,102090.0,0.35905929]
[1737639636895,0.56507392,102100.0,102090.0,0.35905929]
[1737639637100,0.56507392,102100.0,102090.0,0.20905929]
[1737639637302,0.56157392,102100.0,102090.0,0.31680178]
[1737639637682,0.56157392,102100.0,102090.0,0.46680178]
[1737639637883,0.56157392,102100.0,102090.0,0.64958659]
[1737639638108,0.48607392,102100.0,102090.0,0.5356441]
[1737639638326,0.48607392,102100.0,102090.0,0.5126441]
[1737639638527,0.48607392,102100.0,102090.0,0.62038659]
[1737639638786,0.48607392,102100.0,102090.0,0.64338659]
[1737639638913,0.43797392,102100.0,102090.0,0.64338659]
[1737639639121,0.43797392,102100.0,102090.0,0.59338659]
[1737639639337,0.43797392,102100.0,102090.0,0.64338659]
[1737639639609,0.43797392,102100.0,102090.0,0.66338659]
[1737639640762,0.40978005,102100.0,102090.0,0.66338659]
[1737639641439,0.40978005,102100.0,102090.0,0.64958659]
[1737639641640,0.40978005,102100.0,102090.0,0.64326659]
[1737639641775,0.40978005,102100.0,102090.0,0.19529929]
[1737639641993,0.40978005,102100.0,102090.0,0.20897929]
[1737639642739,0.40978005,102100.0,102090.0,0.20893929]
[1737639642939,0.37772201,102100.0,102090.0,0.35893929]
[1737639643791,0.37772201,102100.0,102090.0,0.46668178]
[1737639644142,0.37772201,102100.0,102090.0,0.35893929]
[1737639644748,0.37772201,102100.0,102090.0,0.46668178]
[1737639644952,0.37772201,102100.0,102090.0,0.35893929]
[1737639645362,0.37772201,102100.0,102090.0,0.46668178]
[1737639645594,0.37772201,102100.0,102090.0,0.50968178]
[1737639645801,0.37772201,102100.0,102090.0,0.34529929]
[1737639646806,0.45482201,102100.0,102090.0,0.34529929]
[1737639647203,0.45482201,102100.0,102090.0,0.35881929]
[1737639648791,0.45482201,102100.0,102090.0,0.48956178]
[1737639648994,0.45482201,102100.0,102090.0,0.46656178]
[1737639649206,0.37772201,102100.0,102090.0,0.50956178]
[1737639649408,0.37772201,102100.0,102090.0,0.55956178]
[1737639650919,0.37772201,102100.0,102090.0,0.54604178]
[1737639651127,0.37772201,102100.0,102090.0,0.55964178]
[1737639652363,0.37772201,102100.0,102090.0,0.48964178]
[1737639652568,0.37772201,102100.0,102090.0,0.20893929]
[1737639652780,0.45332201,102100.0,102090.0,0.20893929]
[1737639652978,0.45332201,102100.0,102090.0,0.35893929]
[1737639653223,0.45332201,102100.0,102090.0,0.45304178]
[1737639653443,0.45332201,102100.0,102090.0,0.46668178]
[1737639653679,0.45332201,102100.0,102090.0,0.35923812]
[1737639654492,0.45332201,102100.0,102090.0,0.46698061]
[1737639654814,0.45332201,102100.0,102090.0,0.35923812]
[1737639655010,0.45332201,102100.0,102090.0,0.46698061]
[1737639655220,0.45332201,102100.0,102090.0,0.35923812]
[1737639656179,0.49932201,102100.0,102090.0,0.35915812]
[1737639656392,0.49932201,102100.0,102090.0,0.46690061]
[1737639657374,0.37772201,102100.0,102090.0,0.55990061]
[1737639658241,0.37772201,102100.0,102090.0,0.69223539]
[1737639658426,0.37772201,102100.0,102090.0,0.65651904]
[1737639658602,0.37772201,102100.0,102090.0,0.53990061]
[1737639658804,0.37772201,102100.0,102090.0,0.55990061]
[1737639659639,0.37772201,102100.0,102090.0,0.64657748]
[1737639660000,0.37772201,102100.0,102090.0,0.66656844]